fUSD/lending_fUSD_20240210
["ID","MTS","AMOUNT","RATE_DAILY","PERIOD"]
[313665050,1707556242250,-20413.3156,0.000229,2]
[313665052,1707556242260,-1183.7096,0.000229,2]
[313665054,1707556242269,-500.0,0.000229,2]
[313665056,1707556242279,-22706.58,0.000229,2]
[313665058,1707556242288,-1000.0,0.000229,8]
[313665060,1707556242298,-200.0,0.00022902,2]
[313665062,1707556242308,-800.0,0.00022902,2]
[313665064,1707556242317,-153.5000963,0.00022914,2]
[313665066,1707556242327,-153.5000963,0.00022929,2]
[313665068,1707556242336,-153.5000963,0.00022943,2]
[313665070,1707556242346,-163.11834771,0.00022948,2]
[313665072,1707556242355,-153.5000963,0.00022958,2]
[313665074,1707556242365,-153.5000963,0.00022972,2]
[313665076,1707556242374,-5927.9421,0.00022982,2]
[313665078,1707556242383,-158.29,0.00022984,2]
[313665080,1707556242393,-153.5000963,0.00022987,2]
[313665082,1707556242402,-1847.25569908,0.00022998,2]
[313665084,1707556242411,-3640.7371751,0.00022998,2]
[313665086,1707556242421,-303.93468185,0.00022998,2]
[313665088,1707556242430,-155.77188002,0.00022998,2]
[313665091,1707556242439,-1273.32768221,0.00022998,2]
[313665093,1707556242449,-1047.52615169,0.00022998,2]
[313665095,1707556242458,-155.1293425,0.00022998,2]
[313665097,1707556242467,-163.11834771,0.00022998,2]
[313665099,1707556242477,-4242.78000238,0.00022998,2]
[313665101,1707556242487,-16954.52796123,0.00022998,2]
[313665103,1707556242496,-213.26353276,0.00022999,2]
[313665105,1707556242505,-597.66,0.00022999,2]
[313665107,1707556242515,-500.0,0.00022999,2]
[313665109,1707556242524,-500.0,0.00022999,2]
[313665111,1707556242533,-500.0,0.00022999,2]
[313665113,1707556242544,-500.0,0.00022999,2]
[313665115,1707556242553,-500.0,0.00022999,2]
[313665117,1707556242563,-500.0,0.00022999,2]
[313665119,1707556242572,-500.0,0.00022999,2]
[313665121,1707556242582,-500.0,0.00022999,2]
[313665123,1707556242591,-500.0,0.00022999,2]
[313665125,1707556242601,-500.0,0.00022999,2]
[313665127,1707556242610,-500.0,0.00022999,2]
[313665129,1707556242620,-500.0,0.00022999,2]
[313665132,1707556242629,-500.0,0.00022999,2]
[313665134,1707556242641,-500.0,0.00022999,2]
[313665136,1707556242650,-500.0,0.00022999,2]
[313665138,1707556242659,-500.0,0.00022999,2]
[313665139,1707556242669,-500.0,0.00022999,2]
[313665142,1707556242678,-500.0,0.00022999,2]
[313665144,1707556242687,-500.0,0.00022999,2]
[313665146,1707556242697,-500.0,0.00022999,2]
[313665148,1707556242706,-500.0,0.00022999,2]
[313665150,1707556242715,-500.0,0.00022999,2]
[313665152,1707556242724,-500.0,0.00022999,2]
[313665153,1707556242733,-500.0,0.00022999,2]
[313665156,1707556242743,-500.0,0.00022999,2]
[313665158,1707556242754,-547.79,0.00022999,7]
[313665160,1707556242766,-500.0,0.00022999,2]
[313665162,1707556242776,-500.0,0.00022999,2]
[313665164,1707556242785,-500.0,0.00022999,2]
[313665166,1707556242794,-500.0,0.00022999,2]
[313665168,1707556242805,-500.0,0.00022999,2]
[313665170,1707556242814,-500.0,0.00022999,2]
[313665172,1707556242823,-500.0,0.00022999,2]
[313665174,1707556242832,-500.0,0.00022999,2]
[313665176,1707556242842,-500.0,0.00022999,2]
[313665178,1707556242855,-500.0,0.00022999,2]
[313665180,1707556242864,-500.0,0.00022999,2]
[313665182,1707556242874,-500.0,0.00022999,2]
[313665184,1707556242883,-551.05,0.00022999,2]
[313665186,1707556242893,-500.0,0.00022999,2]
[313665189,1707556242902,-500.0,0.00022999,2]
[313665191,1707556242912,-542.18516533,0.00022999,2]
[313665193,1707556242922,-500.0,0.00022999,2]
[313665195,1707556242931,-359.96718293,0.00022999,2]
[313665197,1707556242941,-500.0,0.00022999,2]
[313665199,1707556242950,-500.0,0.00022999,2]
[313665201,1707556242960,-500.0,0.00022999,2]
[313665203,1707556242969,-500.0,0.00022999,2]
[313665205,1707556242979,-500.0,0.00022999,2]
[313665206,1707556242989,-500.0,0.00022999,2]
[313665207,1707556242998,-500.0,0.00022999,2]
[313665208,1707556243007,-500.0,0.00022999,2]
[313665209,1707556243016,-500.0,0.00022999,2]
[313665210,1707556243026,-500.0,0.00022999,2]
[313665211,1707556243035,-500.0,0.00022999,2]
[313665212,1707556243045,-500.0,0.00022999,2]
[313665214,1707556243054,-500.0,0.00022999,2]
[313665216,1707556243063,-500.0,0.00022999,2]
[313665218,1707556243072,-500.0,0.00022999,2]
[313665221,1707556243082,-500.0,0.00022999,2]
[313665224,1707556243091,-500.0,0.00022999,2]
[313665226,1707556243100,-500.0,0.00022999,2]
[313665228,1707556243109,-500.0,0.00022999,2]
[313665230,1707556243119,-615.83696698,0.00022999,2]
[313665232,1707556243128,-500.0,0.00022999,2]
[313665234,1707556243137,-606.22,0.00022999,2]
[313665236,1707556243146,-500.0,0.00022999,2]
[313665238,1707556243155,-500.0,0.00022999,2]
[313665240,1707556243165,-500.0,0.00022999,2]
[313665242,1707556243175,-500.0,0.00022999,2]
[313665244,1707556243184,-500.0,0.00022999,2]
[313665246,1707556243193,-500.0,0.00022999,2]
[313665248,1707556243202,-500.0,0.00022999,2]
[313665250,1707556243211,-1622.02,0.00022999,2]
[313665251,1707556243220,-150.0,0.00022999,2]
[313665252,1707556243230,-500.0,0.00022999,2]
[313665253,1707556243240,-500.0,0.00022999,2]
[313665254,1707556243249,-1035.89,0.00022999,2]
[313665255,1707556243258,-709.29,0.00022999,2]
[313665256,1707556243268,-500.0,0.00022999,2]
[313665257,1707556243277,-348.81000364,0.00022999,2]
[313665258,1707556243287,-500.0,0.00022999,2]
[313665259,1707556243296,-500.0,0.00022999,2]
[313665260,1707556243305,-500.0,0.00022999,2]
[313665261,1707556243314,-500.0,0.00022999,2]
[313665262,1707556243323,-500.0,0.00022999,2]
[313665263,1707556243333,-500.0,0.00022999,2]
[313665264,1707556243342,-628.9689614,0.00022999,2]
[313665265,1707556243351,-500.0,0.00022999,2]
[313665266,1707556243360,-500.0,0.00022999,2]
[313665267,1707556243371,-500.0,0.00022999,2]
[313665268,1707556243389,-150.0,0.00022999,2]
[313665269,1707556243401,-500.0,0.00022999,2]
[313665270,1707556243410,-500.0,0.00022999,2]
[313665271,1707556243420,-500.0,0.00022999,2]
[313665272,1707556243429,-500.0,0.00022999,2]
[313665273,1707556243439,-500.0,0.00022999,2]
[313665274,1707556243449,-500.0,0.00022999,2]
[313665275,1707556243458,-524.13308894,0.00022999,2]
[313665276,1707556243468,-500.0,0.00022999,2]
[313665277,1707556243478,-500.0,0.00022999,2]
[313665278,1707556243487,-500.0,0.00022999,2]
[313665279,1707556243497,-500.0,0.00022999,2]
[313665280,1707556243506,-500.0,0.00022999,2]
[313665281,1707556243516,-500.0,0.00022999,2]
[313665282,1707556243526,-500.0,0.00022999,2]
[313665283,1707556243537,-500.0,0.00022999,2]
[313665284,1707556243548,-271.07395729,0.00022999,2]
[313665285,1707556243558,-500.0,0.00022999,2]
[313665286,1707556243568,-500.0,0.00022999,2]
[313665287,1707556243577,-500.0,0.00022999,2]
[313665288,1707556243586,-500.0,0.00022999,2]
[313665289,1707556243596,-500.0,0.00022999,2]
[313665290,1707556243605,-500.0,0.00022999,2]
[313665291,1707556243614,-500.0,0.00022999,2]
[313665292,1707556243624,-500.0,0.00022999,2]
[313665293,1707556243633,-520.72185107,0.00022999,2]
[313665294,1707556243642,-500.0,0.00022999,2]
[313665295,1707556243651,-500.0,0.00022999,2]
[313665296,1707556243661,-500.0,0.00022999,2]
[313665297,1707556243670,-500.0,0.00022999,2]
[313665298,1707556243680,-500.0,0.00022999,2]
[313665299,1707556243689,-500.0,0.00022999,2]
[313665300,1707556243698,-589.06,0.00022999,2]
[313665301,1707556243708,-500.0,0.00022999,2]
[313665302,1707556243718,-500.0,0.00022999,2]
[313665303,1707556243727,-500.0,0.00022999,2]
[313665304,1707556243736,-734.71,0.00022999,2]
[313665305,1707556243745,-500.0,0.00022999,2]
[313665306,1707556243755,-500.0,0.00022999,2]
[313665307,1707556243766,-500.0,0.00022999,2]
[313665308,1707556243775,-500.0,0.00022999,2]
[313665309,1707556243784,-500.0,0.00022999,2]
[313665310,1707556243793,-500.0,0.00022999,2]
[313665311,1707556243802,-500.0,0.00022999,2]
[313665312,1707556243812,-500.0,0.00022999,2]
[313665313,1707556243822,-500.0,0.00022999,2]
[313665314,1707556243831,-500.0,0.00022999,2]
[313665315,1707556243843,-500.0,0.00022999,2]
[313665316,1707556243856,-500.0,0.00022999,2]
[313665317,1707556244147,-500.0,0.00022999,2]
[313665318,1707556244157,-500.0,0.00022999,2]
[313665319,1707556244166,-535.43850549,0.00022999,2]
[313665320,1707556244176,-500.0,0.00022999,2]
[313665321,1707556244185,-500.0,0.00022999,2]
[313665322,1707556244194,-500.0,0.00022999,2]
[313665323,1707556244204,-588.92630773,0.00022999,2]
[313665324,1707556244213,-500.0,0.00022999,2]
[313665325,1707556244222,-500.0,0.00022999,2]
[313665326,1707556244232,-500.0,0.00022999,2]
[313665327,1707556244241,-245.31188334,0.00022999,2]
[313665328,1707556244250,-500.0,0.00022999,2]
[313665329,1707556244259,-500.0,0.00022999,2]
[313665330,1707556244268,-500.0,0.00022999,2]
[313665331,1707556244278,-500.0,0.00022999,2]
[313665332,1707556244287,-500.0,0.00022999,2]
[313665333,1707556244296,-500.0,0.00022999,2]
[313665334,1707556244305,-500.0,0.00022999,2]
[313665335,1707556244314,-966.06,0.00022999,2]
[313665336,1707556244324,-500.0,0.00022999,2]
[313665337,1707556244332,-540.71210795,0.00022999,2]
[313665338,1707556244342,-500.0,0.00022999,2]
[313665339,1707556244350,-500.0,0.00022999,2]
[313665340,1707556244359,-515.16,0.00022999,2]
[313665341,1707556244371,-500.0,0.00022999,2]
[313665342,1707556244381,-500.0,0.00022999,2]
[313665343,1707556244390,-500.0,0.00022999,2]
[313665344,1707556244399,-500.0,0.00022999,2]
[313665345,1707556244408,-500.0,0.00022999,2]
[313665346,1707556244417,-500.0,0.00022999,2]
[313665347,1707556244427,-500.0,0.00022999,2]
[313665348,1707556244436,-500.0,0.00022999,2]
[313665349,1707556244446,-5387.22,0.00022999,2]
[313665350,1707556244458,-500.0,0.00022999,2]
[313665351,1707556244466,-500.0,0.00022999,2]
[313665352,1707556244478,-5934.53,0.00022999,2]
[313665353,1707556244487,-546.60873595,0.00022999,2]
[313665354,1707556244496,-500.0,0.00022999,2]
[313665355,1707556244506,-2979.26,0.00022999,2]
[313665356,1707556244515,-500.0,0.00022999,2]
[313665357,1707556244525,-500.0,0.00022999,2]
[313665358,1707556244534,-500.0,0.00022999,2]
[313665359,1707556244543,-3813.97,0.00022999,2]
[313665360,1707556244553,-948.39,0.00022999,2]
[313665361,1707556244562,-500.0,0.00022999,2]
[313665362,1707556244571,-764.15,0.00022999,2]
[313665363,1707556244580,-1436.29,0.00022999,2]
[313665364,1707556244590,-500.0,0.00022999,2]
[313665365,1707556244599,-500.0,0.00022999,2]
[313665366,1707556244608,-5625.5,0.00022999,2]
[313665367,1707556244617,-500.0,0.00022999,2]
[313665368,1707556244626,-554.75649162,0.00022999,2]
[313665369,1707556244635,-500.0,0.00022999,2]
[313665370,1707556244644,-606.71994382,0.00022999,2]
[313665371,1707556244653,-500.0,0.00022999,2]
[313665372,1707556244662,-560.02394006,0.00022999,2]
[313665373,1707556244671,-1945.64,0.00022999,2]
[313665374,1707556244681,-500.0,0.00022999,2]
[313665375,1707556244690,-575.4,0.00022999,2]
[313665376,1707556244698,-500.0,0.00022999,2]
[313665377,1707556244708,-163.52551752,0.00022999,2]
[313665378,1707556244717,-500.0,0.00022999,2]
[313665379,1707556244727,-532.40534883,0.00022999,2]
[313665380,1707556244737,-807.14,0.00022999,2]
[313665381,1707556244746,-500.0,0.00022999,2]
[313665382,1707556244756,-500.0,0.00022999,2]
[313665383,1707556244767,-891.71,0.00022999,2]
[313665384,1707556244777,-500.0,0.00022999,2]
[313665385,1707556244786,-500.0,0.00022999,2]
[313665386,1707556244795,-500.0,0.00022999,2]
[313665387,1707556244805,-500.0,0.00022999,2]
[313665388,1707556244815,-500.0,0.00022999,2]
[313665389,1707556244824,-332.16386453,0.00022999,2]
[313665390,1707556244834,-500.0,0.00022999,2]
[313665391,1707556244845,-2357.14,0.00022999,2]
[313665392,1707556244855,-500.0,0.00022999,2]
[313665393,1707556244864,-500.0,0.00022999,2]
[313665394,1707556244874,-399.10094949,0.00022999,2]
[313665395,1707556244883,-500.0,0.00022999,2]
[313665396,1707556244892,-6324.4,0.00022999,2]
[313665397,1707556244901,-1129.57,0.00022999,2]
[313665398,1707556244913,-2623.02,0.00022999,2]
[313665399,1707556244923,-500.0,0.00022999,2]
[313665400,1707556244932,-500.0,0.00022999,2]
[313665401,1707556244942,-1999.22,0.00022999,2]
[313665402,1707556244951,-500.0,0.00022999,2]
[313665403,1707556244960,-500.0,0.00022999,2]
[313665404,1707556244970,-2351.65,0.00022999,2]
[313665405,1707556244980,-476.76826927,0.00022999,2]
[313665406,1707556244989,-1459.86,0.00022999,2]
[313665407,1707556244999,-235.6392592,0.00022999,2]
[313665408,1707556245008,-500.0,0.00022999,2]
[313665409,1707556245017,-1495.39,0.00022999,2]
[313665410,1707556245027,-500.0,0.00022999,2]
[313665411,1707556245035,-500.0,0.00022999,2]
[313665412,1707556245044,-4487.28,0.00022999,2]
[313665413,1707556245053,-500.0,0.00022999,2]
[313665414,1707556245064,-500.0,0.00022999,2]
[313665415,1707556245073,-500.0,0.00022999,2]
[313665416,1707556245082,-500.0,0.00022999,2]
[313665417,1707556245091,-500.0,0.00022999,2]
[313665418,1707556245102,-500.0,0.00022999,2]
[313665419,1707556245112,-500.0,0.00022999,2]
[313665420,1707556245122,-500.0,0.00022999,2]
[313665421,1707556245131,-500.0,0.00022999,2]
[313665422,1707556245141,-500.0,0.00022999,2]
[313665423,1707556245150,-776.95,0.00022999,2]
[313665424,1707556245159,-500.0,0.00022999,2]
[313665425,1707556245169,-515.278336,0.00022999,2]
[313665426,1707556245178,-500.0,0.00022999,2]
[313665427,1707556245187,-500.0,0.00022999,2]
[313665428,1707556245197,-591.06,0.00022999,2]
[313665429,1707556245206,-2202.23,0.00022999,2]
[313665430,1707556245215,-500.0,0.00022999,2]
[313665431,1707556245224,-772.08,0.00022999,2]
[313665432,1707556245234,-500.0,0.00022999,2]
[313665433,1707556245243,-500.0,0.00022999,2]
[313665434,1707556245252,-500.0,0.00022999,2]
[313665435,1707556245263,-587.8,0.00022999,2]
[313665436,1707556245272,-834.98,0.00022999,2]
[313665437,1707556245281,-500.0,0.00022999,2]
[313665438,1707556245291,-500.0,0.00022999,2]
[313665439,1707556245300,-500.0,0.00022999,2]
[313665440,1707556245309,-512.31957026,0.00022999,2]
[313665441,1707556245319,-500.0,0.00022999,2]
[313665442,1707556245328,-500.0,0.00022999,2]
[313665443,1707556245338,-500.0,0.00022999,2]
[313665444,1707556245347,-500.0,0.00022999,2]
[313665445,1707556245357,-500.0,0.00022999,2]
[313665446,1707556245365,-500.0,0.00022999,2]
[313665447,1707556245374,-500.0,0.00022999,2]
[313665448,1707556245384,-2824.77,0.00022999,2]
[313665449,1707556245393,-566.65185928,0.00022999,2]
[313665450,1707556245402,-500.0,0.00022999,2]
[313665451,1707556245411,-2555.15,0.00022999,2]
[313665452,1707556245421,-500.0,0.00022999,2]
[313665453,1707556245430,-500.0,0.00022999,2]
[313665454,1707556245439,-500.0,0.00022999,2]
[313665455,1707556245448,-500.0,0.00022999,2]
[313665456,1707556245459,-500.0,0.00022999,2]
[313665457,1707556245468,-500.0,0.00022999,2]
[313665458,1707556245478,-1422.88,0.00022999,2]
[313665459,1707556245487,-544.49911739,0.00022999,2]
[313665461,1707556245497,-2563.7,0.00022999,2]
[313665463,1707556245506,-90134.56181028,0.00023,2]
[313665472,1707556245905,-711.40134321,0.00023,2]
[313665474,1707556246212,-500.0,0.00022999,2]
[313665475,1707556246222,-500.0,0.00022999,2]
[313665476,1707556246232,-9940.66608798,0.00023,2]
[313665477,1707556246241,-341.97537821,0.00023,2]
[313665478,1707556246250,-500.0,0.00023,2]
[313665479,1707556246260,-486.28842904,0.00023,2]
[313665480,1707556246269,-500.0,0.00023,2]
[313665481,1707556246279,-500.0,0.00023,2]
[313665482,1707556246288,-500.0,0.00023,2]
[313665483,1707556246297,-500.0,0.00023,2]
[313665484,1707556246306,-500.0,0.00023,2]
[313665485,1707556246315,-634.21851722,0.00023,2]
[313665486,1707556246325,-500.0,0.00023,2]
[313665487,1707556246334,-500.0,0.00023,2]
[313665488,1707556246344,-500.0,0.00023,2]
[313665489,1707556246353,-500.0,0.00023,2]
[313665490,1707556246362,-500.0,0.00023,2]
[313665491,1707556246372,-500.0,0.00023,2]
[313665492,1707556246381,-500.0,0.00023,2]
[313665493,1707556246390,-1000.0,0.00023,2]
[313665494,1707556246399,-500.0,0.00023,2]
[313665495,1707556246409,-500.0,0.00023,2]
[313665496,1707556246418,-523.43315835,0.00023,2]
[313665497,1707556246427,-604.58,0.00023,2]
[313665498,1707556246437,-367.89761081,0.00023,2]
[313665499,1707556246446,-500.0,0.00023,2]
[313665500,1707556246455,-500.0,0.00023,2]
[313665501,1707556246464,-500.0,0.00023,2]
[313665502,1707556246473,-168.18684687,0.00023,2]
[313665503,1707556246483,-500.0,0.00023,2]
[313665504,1707556246492,-500.0,0.00023,2]
[313665505,1707556246501,-500.0,0.00023,2]
[313665506,1707556246510,-500.0,0.00023,2]
[313665507,1707556246519,-500.0,0.00023,2]
[313665508,1707556246527,-500.0,0.00023,2]
[313665509,1707556246537,-500.0,0.00023,2]
[313665510,1707556246545,-500.0,0.00023,2]
[313665511,1707556246554,-500.0,0.00023,2]
[313665512,1707556246563,-500.0,0.00023,2]
[313665513,1707556246572,-553.55499215,0.00023,2]
[313665514,1707556246581,-500.0,0.00023,2]
[313665515,1707556246590,-500.0,0.00023,2]
[313665516,1707556246599,-500.0,0.00023,2]
[313665517,1707556246608,-307.19075399,0.00023,2]
[313665518,1707556246617,-528.76944888,0.00023,2]
[313665519,1707556246625,-500.0,0.00023,2]
[313665520,1707556246634,-500.0,0.00023,2]
[313665521,1707556246643,-187.29373473,0.00023,2]
[313665522,1707556246652,-500.0,0.00023,2]
[313665523,1707556246661,-500.0,0.00023,2]
[313665524,1707556246670,-500.0,0.00023,2]
[313665525,1707556246679,-500.0,0.00023,2]
[313665526,1707556246688,-500.0,0.00023,2]
[313665528,1707556246698,-500.0,0.00023,2]
[313665529,1707556246708,-735.0,0.00023,2]
[313665530,1707556246717,-500.0,0.00023,2]
[313665531,1707556246727,-623.26322599,0.00023,2]
[313665532,1707556246736,-500.0,0.00023,2]
[313665533,1707556246746,-2000.0,0.00023,2]
[313665534,1707556246756,-500.0,0.00023,2]
[313665535,1707556246768,-500.0,0.00023,2]
[313665536,1707556246777,-200.0,0.00023,2]
[313665537,1707556246787,-857.3,0.00023,2]
[313665538,1707556246796,-500.0,0.00023,2]
[313665539,1707556246805,-500.0,0.00023,2]
[313665540,1707556246815,-382.70142721,0.00023,2]
[313665541,1707556246825,-500.0,0.00023,2]
[313665542,1707556246835,-500.0,0.00023,2]
[313665543,1707556246845,-750.66,0.00023,2]
[313665544,1707556246855,-528.88350383,0.00023,2]
[313665545,1707556246865,-439.51701494,0.00023,2]
[313665546,1707556246874,-500.0,0.00023,2]
[313665547,1707556246884,-500.0,0.00023,2]
[313665548,1707556246894,-229.48297617,0.00023,2]
[313665549,1707556246903,-500.0,0.00023,2]
[313665550,1707556246913,-500.0,0.00023,2]
[313665551,1707556246922,-500.0,0.00023,2]
[313665552,1707556246931,-500.0,0.00023,2]
[313665553,1707556246941,-1670.83,0.00023,2]
[313665554,1707556246950,-500.0,0.00023,2]
[313665555,1707556246960,-500.0,0.00023,2]
[313665556,1707556246969,-500.0,0.00023,2]
[313665557,1707556246981,-500.0,0.00023,2]
[313665558,1707556246990,-500.0,0.00023,2]
[313665559,1707556247000,-553.35663289,0.00023,2]
[313665560,1707556247009,-500.0,0.00023,2]
[313665561,1707556247019,-500.0,0.00023,2]
[313665562,1707556247029,-500.0,0.00023,2]
[313665563,1707556247037,-500.0,0.00023,2]
[313665564,1707556247046,-500.0,0.00023,2]
[313665565,1707556247056,-500.0,0.00023,2]
[313665566,1707556247064,-500.0,0.00023,2]
[313665567,1707556247073,-500.0,0.00023,2]
[313665568,1707556247082,-500.0,0.00023,2]
[313665569,1707556247091,-500.0,0.00023,2]
[313665570,1707556247100,-500.0,0.00023,2]
[313665571,1707556247109,-500.0,0.00023,2]
[313665572,1707556247118,-500.0,0.00023,2]
[313665573,1707556247127,-500.0,0.00023,2]
[313665574,1707556247136,-500.0,0.00023,2]
[313665575,1707556247146,-609.97305538,0.00023,2]
[313665576,1707556247155,-683.69,0.00023,2]
[313665577,1707556247165,-500.0,0.00023,2]
[313665578,1707556247174,-218.53,0.00023,2]
[313665579,1707556247183,-500.0,0.00023,2]
[313665580,1707556247191,-500.0,0.00023,2]
[313665581,1707556247200,-497.48067129,0.00023,2]
[313665582,1707556247209,-185.4929863,0.00023,2]
[313665583,1707556247218,-500.0,0.00023,2]
[313665584,1707556247228,-500.0,0.00023,2]
[313665585,1707556247237,-500.0,0.00023,2]
[313665586,1707556247246,-874.67,0.00023,2]
[313665587,1707556247255,-500.0,0.00023,2]
[313665588,1707556247264,-1074.51,0.00023,2]
[313665589,1707556247273,-500.0,0.00023,2]
[313665590,1707556247282,-500.0,0.00023,2]
[313665591,1707556247292,-500.0,0.00023,2]
[313665592,1707556247301,-618.43265356,0.00023,2]
[313665593,1707556247310,-500.0,0.00023,2]
[313665594,1707556247319,-500.0,0.00023,2]
[313665595,1707556247328,-500.0,0.00023,2]
[313665596,1707556247338,-500.0,0.00023,2]
[313665597,1707556247347,-399.16627773,0.00023,2]
[313665598,1707556247356,-500.0,0.00023,2]
[313665599,1707556247365,-500.0,0.00023,2]
[313665600,1707556247574,-451.99329995,0.00023,2]
[313665601,1707556247583,-500.0,0.00023,2]
[313665602,1707556247592,-653.26,0.00023,2]
[313665603,1707556247601,-607.87222037,0.00023,2]
[313665604,1707556247611,-500.0,0.00023,2]
[313665605,1707556247622,-628.44782745,0.00023,2]
[313665606,1707556247631,-500.0,0.00023,2]
[313665607,1707556247640,-500.88,0.00023,2]
[313665608,1707556247649,-500.0,0.00023,2]
[313665609,1707556247658,-500.0,0.00023,2]
[313665610,1707556247667,-500.0,0.00023,2]
[313665611,1707556247676,-500.0,0.00023,2]
[313665612,1707556247685,-500.0,0.00023,2]
[313665613,1707556247694,-500.0,0.00023,2]
[313665614,1707556247703,-500.0,0.00023,2]
[313665615,1707556247712,-500.0,0.00023,2]
[313665616,1707556247721,-500.0,0.00023,2]
[313665617,1707556247731,-500.0,0.00023,2]
[313665618,1707556247740,-500.0,0.00023,2]
[313665619,1707556247750,-500.0,0.00023,2]
[313665620,1707556247761,-507.93,0.00023,2]
[313665621,1707556247771,-2502.69,0.00023,2]
[313665622,1707556247781,-500.0,0.00023,2]
[313665623,1707556247790,-533.32939768,0.00023,2]
[313665624,1707556247800,-500.0,0.00023,2]
[313665625,1707556247809,-500.0,0.00023,2]
[313665626,1707556247818,-500.0,0.00023,2]
[313665627,1707556247827,-500.0,0.00023,2]
[313665628,1707556247837,-500.0,0.00023,2]
[313665629,1707556247846,-500.0,0.00023,2]
[313665630,1707556247857,-500.0,0.00023,2]
[313665631,1707556247866,-500.0,0.00023,2]
[313665632,1707556247875,-500.0,0.00023,2]
[313665633,1707556247884,-500.0,0.00023,2]
[313665634,1707556247894,-500.0,0.00023,2]
[313665635,1707556247903,-500.0,0.00023,2]
[313665636,1707556247912,-500.0,0.00023,2]
[313665637,1707556247921,-500.0,0.00023,2]
[313665638,1707556247931,-2713.49,0.00023,2]
[313665639,1707556247940,-500.0,0.00023,2]
[313665640,1707556247949,-500.0,0.00023,2]
[313665641,1707556247958,-500.0,0.00023,2]
[313665642,1707556247967,-500.0,0.00023,2]
[313665643,1707556247977,-669.87,0.00023,2]
[313665644,1707556247986,-500.0,0.00023,2]
[313665645,1707556247994,-506.2720253,0.00023,2]
[313665646,1707556248003,-500.0,0.00023,2]
[313665647,1707556248012,-670.71,0.00023,2]
[313665648,1707556248021,-500.0,0.00023,2]
[313665649,1707556248030,-500.0,0.00023,2]
[313665650,1707556248039,-500.0,0.00023,2]
[313665651,1707556248048,-500.0,0.00023,2]
[313665652,1707556248057,-1227.78,0.00023,2]
[313665653,1707556248066,-677.04,0.00023,2]
[313665654,1707556248075,-500.0,0.00023,2]
[313665655,1707556248084,-500.0,0.00023,2]
[313665656,1707556248093,-643.77,0.00023,2]
[313665657,1707556248102,-500.0,0.00023,2]
[313665658,1707556248111,-500.0,0.00023,2]
[313665659,1707556248121,-500.0,0.00023,2]
[313665660,1707556248130,-838.0,0.00023,2]